{"text_format":"1","workbook":"xlsx","n_sheets":3,"sheets":["Hoja1","Hoja2","Hoja3"],"not_rendered":{"charts":0,"images":0,"macros":1,"external_links":0,"defined_names":5,"comments":0,"pivot_tables":0},"unopened":[],"bounds":{"document_bytes":16777216,"sheet_cells":100000,"rows_first":2000,"rows_last":500,"rows_between":2000,"halvings":0,"cell_chars":16384,"cell_head_chars":4096},"cells_cut":0,"cells_raw":0,"read":"whole","date_system":"1900"}

{"sheet":"Hoja1","index":0,"n_rows":50,"n_cols":20,"rows_kept":50,"cut":false,"hidden":false,"merged":[[7,0,7,1],[7,2,11,7],[4,0,5,7],[13,0,14,0],[13,1,14,1]]}
[]
[]
[]
[]
["Asigna los valores de velocidad inicial y tiempo del movimiento para obtener la altura recorrida  y la velocidad final en el tiempo establecido (tomemos la altura de partida en 100m)."]
[]
[]
["MRUA: Movimiento de caída libre."]
["Velocidad inicial (m/s)",0]
["Aceleración de gravedad (g)",9.81]
["Tiempo (s)",{"$f":"T50/10","v":4.5}]
["Velocidad Final (m/s)",{"$f":"v0+(a*t)","v":44.145000000000003}]
["Altura recorrida (m)",{"$f":"((v0*t)+0.5*(a*(t^2)))","v":99.326250000000002}]
["Altura final (m)",{"$f":"($H$20)-h","v":0.67374999999999829}]
[]
[]
["Trabajo realizado con el apoyo del Programa UNAM-DGAPA-PAPIME PE110517"]
[]
[]
[null,null,null,null,null,null,null,100]
[]
[]
[]
[]
[]
[null,null,null,null,null,null,null,null,"t","h"]
[null,null,null,null,0,{"$f":"-((t+E27)^2)+1000","v":979.75},null,null,1,{"$f":"($H$20)-h","v":0.67374999999999829}]
[null,null,null,null,1,969.75,null,null,2,0.67374999999999829]
[null,null,null,null,2,957.75,null,null,3,0.67374999999999829]
[null,null,null,null,3,943.75,null,null,4,0.67374999999999829]
[null,null,null,null,4,927.75,null,null,5,0.67374999999999829]
[null,null,null,null,5,909.75,null,null,6,0.67374999999999829]
[null,null,null,null,6,889.75,null,null,7,0.67374999999999829]
[null,null,null,null,7,867.75,null,null,8,0.67374999999999829]
[null,null,null,null,8,843.75,null,null,9,0.67374999999999829]
[null,null,null,null,9,817.75,null,null,10,0.67374999999999829]
[null,null,null,null,10,789.75]
[null,null,null,null,11,759.75]
[null,null,null,null,12,727.75]
[]
[]
[]
[]
[]
[]
[]
[]
[]
[]
[null,null,null,null,null,null,null,null,null,null,null,null,null,null,null,null,null,null,null,45]

{"sheet":"Hoja2","index":1,"n_rows":0,"n_cols":0,"rows_kept":0,"cut":false,"hidden":false,"merged":[]}

{"sheet":"Hoja3","index":2,"n_rows":0,"n_cols":0,"rows_kept":0,"cut":false,"hidden":false,"merged":[]}